[Event "SixDays Budapest GM-B January 2024"]
[Site "Budapest"]
[Date "2024.01.29"]
[Round "4.5"]
[White "Celik, Hasan Huseyin"]
[Black "Pang, Tao"]
[Result "0-1"]
[ECO "C05"]
[WhiteElo "2436"]
[BlackElo "2430"]
[Annotator "TA"]
[PlyCount "66"]
[EventDate "2024.01.26"]
[EventType "tourn"]
[EventCountry "HUN"]
[SourceTitle "playchess.com"]
[Source "ChessBase"]
[SourceQuality "1"]
[TimeControl "5400+30"]

{[%evp 14,66,10,4,20,19,22,29,40,39,39,47,56,85,102,22,19,0,0,0,0,-45,-20,-35,-18,-35,-43,-245,-247,-231,-224,-248,-242,-252,-207,-249,-222,-271,-277,-232,-230,-495,-459,-468,-468,-454,-449,-1172,-980,-29989,-1639,-29997,-29998,-29998,-29999]} 1. e4 {[%emt 0:05:55]} e6 {[%emt 0:00:05]} 2. d4 {[%emt 0:00:06]} d5 {[%emt 0:00:05]} 3. Nd2 {[%emt 0:00:06]} Nf6 {[%emt 0:00:29]} 4. e5 {[%emt 0:00:17]} Nfd7 {[%emt 0:00:05]} 5. f4 {[%emt 0:01:44]} c5 {[%emt 0:00:17]} 6. c3 {[%emt 0:00:01]} Nc6 {[%emt 0:00:18]} 7. Ndf3 {[%emt 0:00:03]} Qb6 {[%emt 0:00:20]} 8. g3 {[%emt 0:01:01]} a5 {[%emt 0:05:06]} 9. a4 {[%emt 0:07:39]} cxd4 {[%emt 0:03:11]} 10. cxd4 {[%emt 0:00:05]} Bb4+ {[%emt 0:00:23] White has an edge.} 11. Kf2 {[%emt 0:00:06]} f6 {[%emt 0:15:22]} 12. Kg2 {[%emt 0:00:07]} g5 {[%emt 0:08:35]} 13. exf6 {[%emt 0:33:46]} Nxf6 {[%emt 0:06:42]} 14. fxg5 {[%emt 0:01:25]} (14. Nxg5 $16 Bd7 15. N1f3) 14... Ne4 $11 {[%emt 0:00:17][%cal Oe6e5]} 15. Bb5 {[%emt 0:04:43]} e5 {[%emt 0:05:02] aiming for ...0-0.} 16. Qb3 {[%emt 0:08:55]} (16. dxe5 $2 Qf2#) 16... Be6 {[%emt 0:00:50] Hoping for ...0-0.} 17. Be3 {[%emt 0:00:09]} (17. Nxe5 $2 O-O (17... Qxd4 $2 18. Ng4 $19) 18. Nd3 Nxd4 $19) 17... O-O {[%emt 0:02:56]} 18. Bxc6 {[%emt 0:02:21]} bxc6 {[%emt 0:03:24]} 19. Nxe5 {[%emt 0:00:05]} Qa6 $1 {[%emt 0:06:24]} 20. Qc2 {[%emt 0:03:25] [#] Against Bd2. This move loses the game for White.} (20. Qd3 $1 $15) 20... Bd2 $1 $19 {[%emt 0:02:18][%mdl 512] This pair of bishops is nice.} 21. Bf4 {[%emt 0:03:07]} Bxf4 {[%emt 0:03:17]} 22. gxf4 {[%emt 0:00:01]} Rxf4 {[%emt 0:00:10] ...Raf8 is the strong threat.} 23. Ngf3 {[%emt 0:00:01]} Raf8 {[%emt 0:01:47]} 24. h3 {[%emt 0:03:33]} Bf7 {[%emt 0:13:59]} 25. Raf1 {[%emt 0:03:22][%cal Oe5d7]} Bh5 {[%emt 0:00:33]} 26. Rhg1 {[%emt 0:01:49]} Kh8 {[%emt 0:01:36]} 27. Kh2 $2 {[%emt 0:02:28]} (27. Nh2 Rf2+ (27... Nxg5 28. Rxf4 Rxf4 29. Rf1 $11) 28. Qxf2 Rxf2+ 29. Rxf2) 27... Rxf3 {[%emt 0:06:02]} (27... Bxf3 28. Qd3 Qxd3 29. Nxd3 $19) 28. Rxf3 {[%emt 0:01:00]} Rxf3 {[%emt 0:00:40]} ({Much less strong is} 28... Bxf3 29. g6 Rf6 30. gxh7 $19) 29. Nxf3 {[%emt 0:01:35]} Bxf3 {[%emt 0:00:01]} 30. h4 {[%emt 0:01:45]} (30. Rg3 $142 Nxg3 31. Kxg3) 30... Qa7 {[%emt 0:02:13]} 31. h5 {[%emt 0:03:35]} Qxd4 {[%emt 0:01:16]} (31... Qc7+ $142 32. Kh3 Qf7 (32... Bxh5 $2 33. Qh2 $19) 33. Qxe4 Bxe4 34. g6 Qf2 (34... hxg6 35. hxg6 Qf3+ 36. Kh4 Qf6+ 37. Kh3 Qf3+ 38. Kh4 Kg7 39. Rg3 Qf2 40. Kh3 Bf5+ 41. Rg4 Qf3+ 42. Kh2 Qxg4 43. b3 Be4 44. b4 Qg2#) 35. Rg5 h6 (35... Qxb2 $2 36. Rg1 $19) (35... Bf5+ 36. Rxf5 Qxf5+ 37. Kg3 Qxh5 38. gxh7 Qxh7 39. Kf4 Qe4+ 40. Kg3 Kh7 41. Kh3 Kg6 42. Kg3 Kf5 43. b3 Qf4+ 44. Kg2 Kg4 45. b4 Qd2+ 46. Kh1 Kf3 47. bxa5 Qg2#) 36. Rg3 Bf5+ (36... Qxb2 37. g7+ Kg8 38. Rg4 Qc3+ 39. Kh2 Qf3 40. Rxe4 dxe4 41. d5 cxd5 42. Kg1 e3 43. Kh2 e2 44. Kg1 e1=Q+ 45. Kh2 Qfh1#) 37. Rg4 Qf3+ (37... Bxg4+ {leads to mate.} 38. Kxg4 Kg7 39. Kh3 Qxd4 40. Kg3 Qe3+ 41. Kh2 d4 42. Kh1 d3 43. Kg2 d2 44. Kh2 d1=Q 45. Kg2 Qdg1#) 38. Kh2 Qxg4 39. b3 Qh3+ (39... Qxh5+ {gets mated.} 40. Kg3 Qxg6+ 41. Kf4 Bg4 42. Kg3 Qe4 43. Kh2 Qf3 44. Kg1 Bh3 45. Kh2 Qg2#) 40. Kg1 Qg3+ 41. Kh1 Be4#) 32. Qxc6 {[%emt 0:04:21]} Qe5+ {[%emt 0:00:14]} 33. Kh3 {[%emt 0:00:06]} Nf2+ {[%emt 0:00:15] Weighted Error Value: White=0.86/Black=0.26 (precise) .  Loses game:     	White=1     	---        Mistake:       	White=3     	---        Inaccurate:     	White=2     	---        OK:         	White=5     	Black=6      Best:        	White=2     	Black=3      Strong:       	---       	Black=1      Brilliant:      	---       	Black=1} 0-1

[Event "SixDays Budapest GM-B January 2024"]
[Site "Budapest"]
[Date "2024.01.29"]
[Round "5.1"]
[White "Pang, Tao"]
[Black "Grover, Sahaj"]
[Result "1-0"]
[ECO "D37"]
[WhiteElo "2430"]
[BlackElo "2503"]
[Annotator "RC"]
[PlyCount "87"]
[EventDate "2024.01.26"]
[EventType "tourn"]
[EventCountry "HUN"]
[SourceTitle "playchess.com"]
[Source "ChessBase"]
[SourceQuality "1"]
[TimeControl "5400+30"]

1. d4 {[%emt 0:00:01]} Nf6 {[%emt 0:04:39]} 2. c4 {[%emt 0:00:11]} e6 {[%emt 0:00:36]} 3. Nf3 {[%emt 0:00:13]} d5 {[%emt 0:01:20]} 4. Nc3 {[%emt 0:00:18]} a6 {[%emt 0:00:33]} 5. cxd5 {[%emt 0:00:57]} exd5 {[%emt 0:00:07]} 6. Bg5 {[%emt 0:00:17]} Be6 {[%emt 0:00:06]} 7. e3 {[%emt 0:00:42]} Nbd7 {[%emt 0:00:05]} 8. h3 {[%emt 0:00:08]} Bd6 {[%emt 0:01:43]} 9. Bd3 {[%emt 0:00:17]} c6 {[%emt 0:00:02]} 10. Bf4 {[%emt 0:00:12]} Qb8 {[%emt 0:00:07]} 11. Bxd6 {[%emt 0:00:48]} Qxd6 {[%emt 0:00:06]} 12. Qc2 {[%emt 0:00:33]} O-O {[%emt 0:00:49]} 13. O-O {[%emt 0:00:18]} g6 {[%emt 0:00:04]} 14. Rfc1 {[%emt 0:04:41]} Qe7 {[%emt 0:00:38]} 15. a4 {[%emt 0:11:08]} Ne8 {[%emt 0:01:10]} 16. b4 {[%emt 0:02:59]} Nd6 {[%emt 0:00:05]} 17. b5 {[%emt 0:00:50]} cxb5 {[%emt 0:00:45]} 18. axb5 {[%emt 0:00:16]} a5 {[%emt 0:00:05]} 19. Na4 {[%emt 0:04:36]} Rfc8 {[%emt 0:00:18]} 20. Qb2 {[%emt 0:01:43]} Ne4 {[%emt 0:07:49]} 21. Ne5 {[%emt 0:11:14]} Rxc1+ {[%emt 0:06:23]} 22. Rxc1 {[%emt 0:00:59]} Nxe5 {[%emt 0:00:05]} 23. dxe5 {[%emt 0:00:22]} Qb4 {[%emt 0:00:06]} 24. Qa1 {[%emt 0:18:55]} Nd2 {[%emt 0:12:21]} 25. Nb6 {[%emt 0:21:07]} Nb3 {[%emt 0:07:03]} 26. Rb1 {[%emt 0:00:04]} Nxa1 {[%emt 0:10:03]} 27. Rxb4 {[%emt 0:00:04]} axb4 {[%emt 0:00:05]} 28. Nxa8 {[%emt 0:00:01]} Nb3 {[%emt 0:09:39]} 29. Kf1 {[%emt 0:02:10]} Nc5 {[%emt 0:00:33]} 30. Ke2 {[%emt 0:02:06]} b3 {[%emt 0:01:20]} 31. Kd2 {[%emt 0:00:53]} b2 {[%emt 0:11:54]} 32. Bb1 {[%emt 0:00:15]} Ne4+ {[%emt 0:03:42]} 33. Bxe4 {[%emt 0:01:15]} dxe4 {[%emt 0:00:05]} 34. Kc2 {[%emt 0:00:02]} Bc4 {[%emt 0:00:05]} 35. b6 {[%emt 0:03:55]} Bf1 {[%emt 0:00:28]} 36. Nc7 {[%emt 0:00:21]} Kf8 {[%emt 0:01:56]} 37. h4 {[%emt 0:01:39]} Bxg2 {[%emt 0:01:32]} 38. Na6 {[%emt 0:03:57]} Bh3 {[%emt 0:07:35]} 39. Nc5 {[%emt 0:00:04]} Bc8 {[%emt 0:00:04]} 40. Kxb2 {[%emt 0:00:04]} h5 {[%emt 0:00:09]} 41. Nxe4 {[%emt 0:00:43]} Ke7 {[%emt 0:01:14]} 42. f4 {[%emt 0:01:05]} Bh3 {[%emt 0:01:04]} 43. Nc5 {[%emt 0:00:46]} Bg2 {[%emt 0:00:12]} 44. e4 {[%emt 0:01:03]} 1-0

[Event "SixDays Budapest GM-B January 2024"]
[Site "Budapest"]
[Date "2024.01.29"]
[Round "5.2"]
[White "Dau Khuong Duy"]
[Black "Celik, Hasan Huseyin"]
[Result "1/2-1/2"]
[ECO "C18"]
[WhiteElo "2309"]
[BlackElo "2436"]
[Annotator "TA"]
[PlyCount "62"]
[EventDate "2024.01.26"]
[EventType "tourn"]
[EventCountry "HUN"]
[SourceTitle "playchess.com"]
[Source "ChessBase"]
[SourceQuality "1"]
[TimeControl "5400+30"]

{[%evp 17,62,0,0,0,36,0,2,0,0,-16,6,8,7,15,40,0,0,0,0,0,0,0,0,-7,0,0,13,0,0,0,0,0,16,6,37,15,27,27,33,34,40,0,50,0,73,49,78]} 1. e4 {[%emt 0:00:09]} e6 {[%emt 0:02:50]} 2. d4 {[%emt 0:00:17]} d5 {[%emt 0:00:02]} 3. Nc3 {[%emt 0:00:06]} Bb4 {[%emt 0:00:03]} 4. e5 {[%emt 0:00:22]} c5 {[%emt 0:00:04]} 5. a3 {[%emt 0:00:05]} Bxc3+ {[%emt 0:00:02]} 6. bxc3 {[%emt 0:00:07]} Qa5 {[%emt 0:00:02]} 7. Bd2 {[%emt 0:02:18]} Qa4 {[%emt 0:00:12]} 8. Qg4 {[%emt 0:01:28]} Kf8 {[%emt 0:00:01]} 9. Bd3 {[%emt 0:05:04]} Ne7 {[%emt 0:09:31]} 10. Nf3 {[%emt 0:04:39]} b6 {[%emt 0:02:18] Black is weak on the dark squares} 11. h4 {[%emt 0:09:11]} Ba6 {[%emt 0:00:31]} 12. h5 {[%emt 0:01:43] [#] h6 would now be deadly. The position is equal.} h6 {[%emt 0:00:20]} 13. Qf4 {[%emt 0:00:50]} Bxd3 {[%emt 0:10:08]} 14. cxd3 {[%emt 0:00:06]} c4 {[%emt 0:01:06]} 15. Nh4 {[%emt 0:04:05]} Ke8 {[%emt 0:01:40]} 16. O-O {[%emt 0:01:47]} Nbc6 {[%emt 0:01:16]} 17. Qg4 {[%emt 0:12:47]} Qc2 {[%emt 0:09:50]} 18. Rad1 {[%emt 0:09:09]} Qxd3 {[%emt 0:02:27]} 19. Qxg7 {[%emt 0:11:01]} Kd7 {[%emt 0:08:44]} 20. Qg3 {[%emt 0:03:19]} (20. Bxh6 $2 {loses.} Qe4 21. g3 Rag8 $19) 20... Qh7 {[%emt 0:03:13]} 21. f3 {[%emt 0:03:40]} Rag8 {[%emt 0:06:48]} 22. Qf2 {[%emt 0:00:41]} Qc2 {[%emt 0:11:59]} 23. g4 {[%emt 0:01:53]} Na5 {[%emt 0:01:34]} 24. Qe1 {[%emt 0:09:56]} Nb3 {[%emt 0:01:49]} 25. Rf2 {[%emt 0:00:14][%cal Od2g5] Threatens to win with Bg5!} Qh7 {[%emt 0:01:25]} 26. Ng2 {[%emt 0:01:04]} b5 {[%emt 0:00:54]} 27. Bf4 {[%emt 0:01:57]} a5 {[%emt 0:01:58]} 28. Ne3 {[%emt 0:00:28]} Nf5 {[%emt 0:03:58] Prevents Bg3} 29. Ng2 {[%emt 0:02:12]} Ne7 {[%emt 0:00:11]} 30. Ne3 {[%emt 0:00:04]} (30. a4 $14) 30... Rf8 {[%emt 0:03:16]} (30... Nf5 $11 {remains equal.}) 31. Kh2 {[%emt 0:01:00][%cal Oa3a4]} Rhg8 {[%emt 0:00:18] Weighted Error Value: White=0.13 (very precise) /Black=0.12 (very precise) .  Mistake:       	White=1     	Black=1      Inaccurate:     	White=2     	Black=3      OK:         	White=4     	Black=9      Best:        	White=1     	Black=1} 1/2-1/2

[Event "SixDays Budapest GM-B January 2024"]
[Site "Budapest"]
[Date "2024.01.29"]
[Round "5.3"]
[White "Pap, Misa"]
[Black "Varga, Zoltan"]
[Result "1/2-1/2"]
[ECO "B22"]
[WhiteElo "2422"]
[BlackElo "2366"]
[Annotator "TA"]
[PlyCount "19"]
[EventDate "2024.01.26"]
[EventType "tourn"]
[EventCountry "HUN"]
[SourceTitle "playchess.com"]
[Source "ChessBase"]
[SourceQuality "1"]
[TimeControl "5400+30"]

{[%evp 14,19,0,15,29,19,21,24]} 1. e4 c5 {[%cal Bc7c5,Bc5d4][%mdl 32]} 2. c3 Nf6 3. e5 Nd5 4. d4 cxd4 5. Nf3 Nc6 6. Bc4 Nb6 7. Bb3 d5 8. exd6 ({But not} 8. Nxd4 Nxe5 9. O-O e6 $15) 8... e6 9. cxd4 Bxd6 10. Nc3 {Not much happened in this game.   Weighted Error Value: White=0.05 (flawless) /Black=0.07 (flawless) .  OK:         	White=1     	Black=1} 1/2-1/2

[Event "SixDays Budapest GM-B January 2024"]
[Site "Budapest"]
[Date "2024.01.29"]
[Round "5.4"]
[White "Kaczur, Florian"]
[Black "Lee, Alice"]
[Result "1-0"]
[ECO "C24"]
[WhiteElo "2506"]
[BlackElo "2379"]
[Annotator "TA"]
[PlyCount "135"]
[EventDate "2024.01.26"]
[EventType "tourn"]
[EventCountry "HUN"]
[SourceTitle "playchess.com"]
[Source "ChessBase"]
[SourceQuality "1"]
[TimeControl "5400+30"]

{[%evp 47,135,0,0,0,0,0,44,45,50,50,56,35,76,8,5,0,0,0,0,0,0,0,0,0,0,0,0,0,0,0,0,0,0,0,0,0,0,0,0,0,0,0,0,0,0,0,21,21,27,28,21,35,1075,1125,1216,1112,76,1117,4134,3743,1232,3220,29976,29977,29977,29978,29977,29979,29979,29980,29980,29981,29981,29982,29982,29983,29983,29984,29984,29985,29986,29987,29989,29990,29993,29994,29994,29993,29995,29996]} 1. e4 {[%emt 0:00:04]} e5 {[%emt 0:00:05]} 2. Bc4 {[%emt 0:00:26]} Nf6 {[%emt 0:00:14]} 3. d3 {[%emt 0:00:05]} c6 {[%emt 0:00:12]} 4. Nf3 {[%emt 0:00:44]} d5 {[%emt 0:00:09]} 5. Bb3 {[%emt 0:00:04]} a5 {[%emt 0:00:21]} 6. a4 {[%emt 0:02:25] C24: Bishop's Opening: 2...Nf6.} Bb4+ {[%emt 0:00:09]} 7. c3 {[%emt 0:00:49]} Bd6 {[%emt 0:00:08]} 8. exd5 {[%emt 0:01:09]} cxd5 {[%emt 0:00:07]} 9. Na3 {[%emt 0:01:52]} Nc6 {[%emt 0:00:22]} 10. Nb5 {[%emt 0:00:12]} Bb8 {[%emt 0:02:39]} 11. Bg5 {[%emt 0:01:11]} Be6 {[%emt 0:00:14]} 12. d4 {[%emt 0:02:11]} e4 {[%emt 0:01:29]} 13. Nd2 {[%emt 0:05:08]} h6 {[%emt 0:03:04]} 14. Bh4 {[%emt 0:02:05]} g5 {[%emt 0:04:49]} 15. Bg3 {[%emt 0:00:13]} Bf4 {[%emt 0:00:09]} 16. Nf1 {[%emt 0:01:41]} Na7 $146 {[%emt 0:08:48]} ({Predecessor:} 16... Qe7 17. Bxf4 gxf4 18. Qd2 e3 19. fxe3 Ne4 20. Qe2 Rg8 21. exf4 O-O-O 22. Ne3 Qh4+ {0-1 Oratovsky,M (2414)-Studer,N (2582) Barbera del Valles 1st 2020 (2)}) 17. Nxa7 {[%emt 0:08:30]} Rxa7 {[%emt 0:00:10]} 18. Ne3 {[%emt 0:08:18]} h5 {[%emt 0:09:58]} 19. c4 {[%emt 0:03:58]} Bxe3 {[%emt 0:06:41]} 20. fxe3 {[%emt 0:00:27]} dxc4 {[%emt 0:03:36]} 21. Bc2 {[%emt 0:05:30]} Ng4 {[%emt 0:07:38]} 22. Bxe4 {[%emt 0:07:59]} f5 {[%emt 0:03:54]} 23. Bf3 {[%emt 0:05:56]} Nxe3 {[%emt 0:11:25]} 24. Qd2 {[%emt 0:01:08]} f4 {[%emt 0:02:12]} 25. Bf2 {[%emt 0:02:31]} g4 {[%emt 0:01:47]} 26. Be4 {[%emt 0:04:00]} O-O {[%emt 0:08:29]} 27. Bxe3 {[%emt 0:05:11]} fxe3 {[%emt 0:00:02]} 28. Qxe3 {[%emt 0:01:09]} Bd5 {[%emt 0:00:58]} 29. O-O-O {[%emt 0:01:23]} Ra6 {[%emt 0:02:21] [#]} 30. Rhf1 {[%emt 0:05:49]} ({Better is} 30. Rhe1 $1 $16) 30... Re6 $11 {[%emt 0:03:10]} 31. Bxd5 {[%emt 0:02:49]} Qxd5 {[%emt 0:00:04]} 32. Rxf8+ {[%emt 0:00:13]} Kxf8 {[%emt 0:00:02]} 33. Qf4+ {[%emt 0:00:17]} Ke8 $1 {[%emt 0:01:26]} 34. Qc7 {[%emt 0:05:43]} Re2 {[%emt 0:07:08]} 35. Rf1 {[%emt 0:02:10]} Rc2+ {[%emt 0:00:06]} (35... Qxd4 $2 36. Qc8+ Qd8 37. Rf8+ (37. Qxb7 Qd2+ 38. Kb1 Qc2+ 39. Ka1 Qxa4+ 40. Kb1 Qc2+ 41. Ka1 Qa4+ 42. Kb1 Qc2+ 43. Ka1 Qa4+ $11) 37... Kxf8 38. Qxd8+ $18) 36. Kxc2 {[%emt 0:01:51]} Qxg2+ {[%emt 0:00:02]} 37. Kc3 {[%emt 0:00:21]} Qxf1 {[%emt 0:01:00]} 38. Qc8+ {[%emt 0:00:18]} Kf7 {[%emt 0:00:18]} 39. Qxb7+ {[%emt 0:00:12]} Kg6 {[%emt 0:08:58]} 40. Qe4+ {[%emt 0:01:44]} Kg5 {[%emt 0:00:35]} 41. Qe7+ {[%emt 0:01:03]} Kg6 {[%emt 0:00:36]} 42. Qe8+ {[%emt 0:00:24]} Kg5 {[%emt 0:00:52]} 43. Qd8+ {[%emt 0:00:38]} Kg6 {[%emt 0:00:31]} 44. Qg8+ {[%emt 0:03:09]} Kh6 {[%emt 0:00:01]} 45. Qe6+ {[%emt 0:00:40]} Kg5 {[%emt 0:01:03]} 46. Qe3+ {[%emt 0:00:32]} Kh4 {[%emt 0:01:34]} 47. d5 {[%emt 0:04:14]} Qd1 $1 {[%emt 0:00:32]} (47... Qh3 $2 48. Qxh3+ Kxh3 49. d6 (49. Kxc4 Kxh2 50. d6 g3 $18) 49... Kxh2 50. d7 $18 (50. Kxc4 g3 $18)) 48. Qg3+ {[%emt 0:01:01]} Kg5 {[%emt 0:00:01]} 49. Qe5+ {[%emt 0:00:10]} Kh4 $2 {[%emt 0:00:39][%mdl 8192]} (49... Kg6 $14 50. Kxc4 Qxa4+ 51. Kc5 Qb4+ 52. Kc6 Qc4+ 53. Kb6 Qb4+ 54. Ka6 Qc4+ 55. Kb7 (55. Kxa5 Qc5+ 56. Ka4 Qc4+ 57. Ka5 Qc5+ 58. Ka6 Qc4+ 59. Kb6 Qb4+ 60. Kc6 Qa4+ 61. Kd6 Qa6+ 62. Kc7 Qa7+ 63. Kc6 Qa6+ 64. Kc5 Qa7+ 65. Kb5 Qb7+ 66. Kc4 Qa6+ 67. Kd4 Qb6+ 68. Kc4 Qa6+ 69. Kc5 Qa5+ 70. Kc4 Qa6+ $11) 55... Qb5+ 56. Ka7 Qd7+ 57. Kb6 h4) 50. Kxc4 $18 {[%emt 0:00:44]} Qxa4+ {[%emt 0:00:42]} 51. Kc5 {[%emt 0:00:17]} Qb4+ {[%emt 0:00:54]} 52. Kc6 {[%emt 0:00:02]} Qc4+ {[%emt 0:01:14]} 53. Kd7 {[%emt 0:01:08]} Qb5+ {[%emt 0:00:34]} 54. Ke7 {[%emt 0:00:21]} (54. Kd8 $142 a4 55. Ke7 Qc5+ 56. Ke6) 54... a4 {[%emt 0:01:30]} 55. Kf6 {[%emt 0:01:51]} Qf1+ {[%emt 0:00:32]} 56. Kg6 {[%emt 0:00:24]} Qd3+ {[%emt 0:01:09]} 57. Qf5 {[%emt 0:01:44]} Qa6+ {[%emt 0:00:06]} 58. Qf6+ {[%emt 0:00:22]} Qxf6+ {[%emt 0:00:07]} 59. Kxf6 {[%emt 0:00:04]} Kh3 {[%emt 0:00:09]} 60. d6 {[%emt 0:00:10]} Kxh2 {[%emt 0:00:32]} 61. d7 {[%emt 0:00:06]} g3 {[%emt 0:00:15]} 62. d8=Q {[%emt 0:00:05]} (62. d8=R $2 {too greedy.} h4 (62... g2 63. Rh8 $11) 63. Ra8 h3 (63... g2 $2 64. Rxa4 h3 65. Ke6 $19) 64. Rxa4 g2 $19) 62... g2 {[%emt 0:00:44]} 63. Qd6+ {[%emt 0:00:21]} Kh1 {[%emt 0:00:06]} 64. Qd5 {[%emt 0:00:13]} h4 {[%emt 0:00:09]} 65. Kg5 {[%emt 0:00:30]} h3 {[%emt 0:01:20]} 66. Kh4 {[%emt 0:00:09]} Kh2 {[%emt 0:00:15]} 67. Qe5+ {[%emt 0:00:29]} Kh1 {[%emt 0:00:07]} 68. Kxh3 {[%emt 0:01:19]} 1-0

[Event "SixDays Budapest GM-B January 2024"]
[Site "Budapest"]
[Date "2024.01.29"]
[Round "5.5"]
[White "Gombocz, Ferenc Jr."]
[Black "Coenen, Michael"]
[Result "1/2-1/2"]
[ECO "A14"]
[WhiteElo "2366"]
[BlackElo "2330"]
[Annotator "TA"]
[PlyCount "120"]
[EventDate "2024.01.26"]
[EventType "tourn"]
[EventCountry "HUN"]
[SourceTitle "playchess.com"]
[Source "ChessBase"]
[SourceQuality "1"]
[TimeControl "5400+30"]

{[%evp 24,120,0,0,-4,-4,0,0,-6,0,0,-6,-6,-52,-50,-51,37,37,33,32,34,36,25,30,45,39,44,50,44,8,5,9,17,12,11,0,0,0,0,0,0,0,2,0,2,8,13,6,15,15,10,10,10,10,10,22,12,12,34,41,51,24,20,13,8,8,8,0,0,0,0,0,0,0,0,0,0,0,0,0,0,0,0,0,0,0,0,-5,0,0,0,0,0,0,0,0,0,0,0]} 1. c4 {[%emt 0:00:05]} e6 {[%emt 0:00:04]} 2. g3 {[%emt 0:00:05]} d5 {[%emt 0:00:04]} 3. Bg2 {[%emt 0:00:09]} Nf6 {[%emt 0:00:04]} 4. Nf3 {[%emt 0:00:07]} Be7 {[%emt 0:00:04]} 5. O-O {[%emt 0:00:07]} O-O {[%emt 0:00:04]} 6. d4 {[%emt 0:00:05]} dxc4 {[%emt 0:00:05]} 7. Ne5 {[%emt 0:00:05]} Nc6 {[%emt 0:00:04]} 8. Nxc6 {[%emt 0:00:05]} bxc6 {[%emt 0:00:03]} 9. Na3 {[%emt 0:00:05]} Bxa3 {[%emt 0:00:05]} 10. bxa3 {[%emt 0:00:03]} Ba6 {[%emt 0:00:06]} 11. a4 {[%emt 0:00:09] E05: Open Catalan: 5 Nf3 Be7.} Qd6 {[%emt 0:00:04]} 12. Qd2 {[%emt 0:00:45]} Rfb8 {[%emt 0:00:04]} 13. Qa5 {[%emt 0:05:50]} Rb6 {[%emt 0:00:05]} (13... Qxd4 $2 {loses.} 14. Be3 Qd6 15. Qxa6 $18) 14. Bf4 $146 {[%emt 0:19:13]} ({Predecessor:} 14. Re1 Bb7 15. Qc3 Qb4 16. Qxb4 Rxb4 17. Bd2 Rb2 18. Bc3 Rc2 19. Rec1 Rxc1+ 20. Rxc1 {½-½ Wang,Y (2734)-Zhou,J (2660) CHN-ch Xinghua Jiangsu 2011 (6)}) 14... Qe7 {[%emt 0:00:12]} 15. Qc5 $1 {[%emt 0:01:20]} Qxc5 {[%emt 0:12:17]} 16. dxc5 {[%emt 0:00:06]} Rb2 {[%emt 0:00:07]} 17. Bxc6 {[%emt 0:00:34]} Rc8 {[%emt 0:04:25]} 18. e4 {[%emt 0:02:37]} (18. Rfe1 $11) 18... c3 $15 {[%emt 0:07:16]} 19. Rfc1 {[%emt 0:00:41]} Bb7 {[%emt 0:07:21]} (19... Ng4 $1 $15 20. f3 g5 (20... Nxh2 21. Rxc3 g5 22. Bxg5 $18) 21. Rxc3 gxf4 (21... Nxh2 22. Bxg5 Rcb8 23. g4 $16) 22. fxg4 fxg3 23. Rxg3 Rc2) 20. Bxb7 $14 {[%emt 0:01:37]} Rxb7 {[%emt 0:00:13]} 21. f3 {[%emt 0:00:12]} Rb4 {[%emt 0:03:03]} 22. Rxc3 {[%emt 0:00:31]} Rxa4 {[%emt 0:07:22]} 23. Rb1 {[%emt 0:02:00]} Kf8 {[%emt 0:02:04]} 24. a3 {[%emt 0:02:52]} Ke7 {[%emt 0:08:04]} 25. Rb7 {[%emt 0:00:38]} Ne8 {[%emt 0:00:09]} 26. Be3 {[%emt 0:02:00]} e5 {[%emt 0:03:52]} 27. Kf2 {[%emt 0:04:01]} Ke6 {[%emt 0:06:14]} 28. Ke2 {[%emt 0:02:33]} g6 {[%emt 0:00:37]} 29. Kd3 {[%emt 0:11:53]} f5 {[%emt 0:01:12]} 30. Kc2 {[%emt 0:01:28]} fxe4 {[%emt 0:01:39]} 31. Kb3 {[%emt 0:00:08]} Ra6 $1 {[%emt 0:05:15]} 32. fxe4 {[%emt 0:00:21]} Kd7 {[%emt 0:04:26]} 33. Rxa7 {[%emt 0:09:34]} Rxa7 {[%emt 0:04:41]} 34. c6+ {[%emt 0:00:08]} Ke6 $1 {[%emt 0:00:02]} 35. Bxa7 {[%emt 0:00:09]} Nd6 {[%emt 0:00:03]} 36. Re3 {[%emt 0:01:12]} Nb5 {[%emt 0:09:34]} 37. Bc5 {[%emt 0:00:15]} Nd4+ {[%emt 0:00:27]} 38. Bxd4 {[%emt 0:00:53]} exd4 {[%emt 0:00:02]} 39. Rf3 {[%emt 0:00:11]} Ra8 {[%emt 0:01:52]} 40. Kc4 {[%emt 0:01:19]} Ke5 {[%emt 0:01:31]} 41. Rf7 {[%emt 0:00:44]} Rxa3 {[%emt 0:03:48]} 42. Re7+ $1 {[%emt 0:00:35]} Kd6 {[%emt 0:00:05]} 43. Rxh7 {[%emt 0:00:17]} d3 {[%emt 0:01:47]} 44. Rd7+ {[%emt 0:02:59]} Kxc6 {[%emt 0:00:09]} 45. Rd5 {[%emt 0:07:27]} Ra2 {[%emt 0:00:07]} 46. Kxd3 {[%emt 0:00:30]} Rxh2 {[%emt 0:00:10]} 47. Rg5 {[%emt 0:00:05]} Rh6 {[%emt 0:00:08]} 48. Kd4 {[%emt 0:00:24]} Kd6 {[%emt 0:00:16]} 49. g4 {[%emt 0:00:57]} c6 {[%emt 0:05:16]} 50. Kc4 {[%emt 0:07:12]} Ke6 {[%emt 0:00:15]} 51. Kd4 {[%emt 0:00:26]} Kd6 {[%emt 0:00:03]} 52. e5+ {[%emt 0:03:24]} Ke6 {[%emt 0:00:18]} 53. Kc5 {[%emt 0:00:04]} Kf7 {[%emt 0:00:16]} 54. Kxc6 {[%emt 0:00:36]} Rh1 {[%emt 0:00:23]} 55. e6+ {[%emt 0:00:45]} Kxe6 {[%emt 0:00:12]} 56. Rxg6+ {[%emt 0:00:04]} Kf7 {[%emt 0:00:05]} 57. Rg5 {[%emt 0:00:08]} Kf6 {[%emt 0:00:27]} 58. Rc5 {[%emt 0:00:41]} Rg1 {[%emt 0:00:16]} 59. g5+ {[%emt 0:00:03]} Rxg5 {[%emt 0:00:04]} 60. Rxg5 {[%emt 0:00:02]} Kxg5 1/2-1/2